bitfinex-derivatives/quotes_BTCF0:USTF0_20251202
["timestamp","ask_amount","ask_price","bid_price","bid_amount"]
[1764681213805,0.3732643,87242.0,87241.0,0.0766444]
[1764681214804,0.3618,87242.0,87241.0,0.0766444]
[1764681215114,0.3732643,87242.0,87241.0,0.0766444]
[1764681215703,0.3722643,87242.0,87241.0,0.0766444]
[1764681216008,0.3732643,87242.0,87241.0,0.0766444]
[1764681216316,0.3732643,87242.0,87240.0,0.02035]
[1764681216612,0.8132643,87242.0,87239.0,0.10291]
[1764681216796,0.0114656,87232.0,87228.0,0.05209184]
[1764681216996,0.0114666,87224.0,87221.0,0.03092184]
[1764681217213,0.0114676,87217.0,87216.0,0.07277]
[1764681217517,0.0114676,87217.0,87216.0,0.01758]
[1764681217518,0.1714676,87217.0,87216.0,0.01758]
[1764681217808,0.0114676,87217.0,87216.0,0.01758]
[1764681218207,0.0114676,87217.0,87216.0,0.04509]
[1764681218408,0.3608,87220.0,87219.0,0.05519]
[1764681219409,0.3628,87220.0,87219.0,0.05519]
[1764681219999,0.3628,87220.0,87219.0,0.0731172]
[1764681220199,0.3608,87220.0,87219.0,0.05519]
[1764681220406,0.3638,87220.0,87219.0,0.05519]
[1764681223018,0.5138,87220.0,87219.0,0.03087514]
[1764681223216,0.0114678,87215.0,87213.0,0.03087514]
[1764681223519,0.0114682,87212.0,87211.0,0.15871]
[1764681224113,0.3608,87213.0,87211.0,0.15871]
[1764681224416,0.3608,87213.0,87211.0,0.05519]
[1764681224616,0.3608,87213.0,87212.0,0.05519]
[1764681226319,0.3618,87213.0,87212.0,0.05519]
[1764681226702,0.3608,87213.0,87212.0,0.05519]
[1764681227028,0.3618,87213.0,87212.0,0.05519]
[1764681243330,0.001,87213.0,87212.0,0.07311805]
[1764681246231,0.001,87213.0,87212.0,0.05519]
[1764681246533,0.3608,87221.0,87212.0,0.05519]
[1764681246534,0.3608,87221.0,87220.0,0.0658]
[1764681246725,0.3608,87221.0,87220.0,0.10819685]
[1764681247540,0.3608,87221.0,87220.0,0.0772672]
[1764681248942,0.3638,87221.0,87220.0,0.0772672]
[1764681249328,0.003,87221.0,87220.0,0.6111072]
[1764681249533,0.46213113,87230.0,87224.0,0.0772666]
[1764681250335,0.3608,87230.0,87224.0,0.0772666]
[1764681251339,0.3608,87230.0,87224.0,0.08890794]
[1764681251936,0.00217198,87225.0,87224.0,0.08890794]
[1764681252342,0.00317198,87225.0,87224.0,0.08890794]
[1764681252538,0.00317198,87225.0,87224.0,0.0772666]
[1764681252733,0.00317198,87225.0,87224.0,0.08855889]
[1764681253134,0.00317198,87225.0,87224.0,0.10648286]
[1764681253328,0.003,87225.0,87224.0,0.08855889]
[1764681253538,0.3608,87238.0,87237.0,0.0772649]
[1764681253737,0.36267,87238.0,87237.0,0.0772649]
[1764681254431,0.3608,87238.0,87237.0,0.0772649]
[1764681255428,0.3618,87238.0,87237.0,0.0772649]
[1764681255828,0.3648,87238.0,87237.0,0.0772649]
[1764681256440,0.3638,87238.0,87237.0,0.0772649]
[1764681257447,0.3638,87238.0,87237.0,0.10814253]
[1764681257845,0.3608,87238.0,87237.0,0.11114253]
[1764681258245,0.3608,87238.0,87237.0,0.0772649]
[1764681258436,0.3608,87238.0,87237.0,0.0802649]
[1764681259348,0.3608,87238.0,87237.0,0.0772649]
[1764681259545,0.3608,87238.0,87237.0,0.0802649]
[1764681259945,0.36454,87238.0,87237.0,0.0802649]
[1764681261743,0.36454,87238.0,87237.0,0.0792649]
[1764681262449,0.36454,87238.0,87237.0,0.0802649]
[1764681263049,0.36454,87238.0,87237.0,0.003]
[1764681263550,0.3760048,87238.0,87237.0,0.003]
[1764681264150,0.3760048,87238.0,87237.0,0.0144649]
[1764681264341,0.3760048,87238.0,87237.0,0.0134649]
[1764681264650,0.36454,87238.0,87237.0,0.0134649]
[1764681264853,0.36454,87238.0,87237.0,0.0114649]
[1764681265051,0.36454,87238.0,87237.0,0.0124649]
[1764681265450,0.36454,87238.0,87237.0,0.0114649]
[1764681265651,0.36454,87238.0,87237.0,0.0124649]
[1764681268154,0.36454,87238.0,87237.0,0.0114649]
[1764681268355,0.36454,87238.0,87237.0,0.0124649]
[1764681268742,0.36454,87238.0,87237.0,0.0114649]
[1764681268943,0.36454,87238.0,87237.0,0.0124649]
[1764681271653,0.3760048,87238.0,87237.0,0.0124649]
[1764681272848,0.0114652,87235.0,87234.0,0.08935]
[1764681273045,0.4714652,87235.0,87234.0,0.08935]
[1764681273351,0.0114658,87232.0,87231.0,0.0114657]
[1764681273552,0.0614658,87232.0,87231.0,0.0114657]
[1764681274154,0.0614658,87232.0,87231.0,0.0395357]
[1764681275161,0.0614658,87232.0,87231.0,0.0695857]
[1764681275459,0.0614658,87232.0,87231.0,0.001]
[1764681275658,0.3514658,87232.0,87231.0,0.001]
[1764681276161,0.3514658,87232.0,87229.0,0.00017198]
[1764681278262,0.3514658,87232.0,87229.0,0.01163798]
[1764681278263,0.0114658,87230.0,87229.0,0.01163798]
[1764681278450,0.0514658,87230.0,87229.0,0.01163798]
[1764681281662,0.0514658,87230.0,87229.0,0.06875798]
[1764681283865,0.0114658,87230.0,87229.0,0.06875798]
[1764681284052,0.0114658,87230.0,87229.0,0.06975798]
[1764681284855,0.1714658,87230.0,87229.0,0.00117198]
[1764681285058,0.0114658,87230.0,87229.0,0.00117198]
[1764681285461,0.0114658,87230.0,87229.0,0.05829198]
[1764681287063,0.0114658,87230.0,87229.0,0.05729198]
[1764681287657,0.0114658,87230.0,87229.0,0.06875798]
[1764681290367,0.0114658,87230.0,87229.0,0.05729198]
[1764681290562,0.1714658,87230.0,87229.0,0.05729198]
[1764681291172,0.0114658,87230.0,87229.0,0.05729198]
[1764681291466,0.3414658,87230.0,87229.0,0.02824198]
[1764681291672,0.3414658,87230.0,87229.0,0.00017198]
[1764681291854,0.0114658,87230.0,87229.0,0.00017198]
[1764681292059,0.0114658,87230.0,87229.0,0.06875798]
[1764681293675,0.0114658,87230.0,87229.0,0.05729198]
[1764681293970,0.0114658,87230.0,87229.0,0.03970798]
[1764681294364,0.0114658,87230.0,87229.0,0.06875798]
[1764681297469,0.3722654,87234.0,87233.0,0.0685855]
[1764681299263,0.3722654,87234.0,87233.0,0.0695855]
[1764681300564,0.3608,87234.0,87233.0,0.0685855]
[1764681301161,0.06092401,87249.0,87245.0,0.07461]
[1764681301372,0.09165616,87274.0,87255.0,0.01749]
[1764681301674,0.3608,87278.0,87277.0,0.05712]
[1764681302179,0.64736,87278.0,87277.0,0.05712]
[1764681302368,0.3608,87278.0,87277.0,0.05712]
[1764681302566,0.28656,87278.0,87277.0,0.05712]
[1764681303075,0.28756,87278.0,87277.0,0.05712]
[1764681303570,0.34722,87278.0,87277.0,0.05712]
[1764681303972,0.34722,87278.0,87277.0,0.02807]
[1764681304475,0.34722,87278.0,87277.0,0.07381]
[1764681304893,0.34622,87278.0,87277.0,0.07181]
[1764681305174,0.34622,87278.0,87277.0,0.07281]
[1764681305570,0.34622,87278.0,87277.0,0.07181]
[1764681306374,0.28656,87278.0,87277.0,0.07181]
[1764681307974,0.28656,87278.0,87277.0,0.07281]
[1764681308477,0.28656,87278.0,87277.0,0.07181]
[1764681308677,0.28656,87278.0,87277.0,0.07281]
[1764681309176,0.31639,87278.0,87277.0,0.07281]
[1764681311879,0.34622,87278.0,87277.0,0.07281]
[1764681312082,0.34622,87278.0,87277.0,0.02907]
[1764681312275,0.34622,87278.0,87277.0,0.0842697]
[1764681312480,0.31639,87278.0,87277.0,0.0842697]
[1764681312882,0.34622,87278.0,87277.0,0.0842697]
[1764681313382,0.03000187,87286.0,87285.0,0.0971786]
[1764681313569,0.00017187,87286.0,87285.0,0.0971786]
[1764681313773,0.28673187,87286.0,87285.0,0.0971786]
[1764681315089,0.31656187,87286.0,87285.0,0.0971786]
[1764681315483,0.31656187,87286.0,87285.0,0.2032586]
[1764681315685,0.31656187,87286.0,87285.0,0.2042586]
[1764681316680,0.34639187,87286.0,87285.0,0.1928]
[1764681318389,0.34639187,87286.0,87285.0,0.1918]
[1764681318579,0.34639187,87286.0,87285.0,0.1928]
[1764681320185,0.34639187,87286.0,87285.0,0.10708]
[1764681320683,0.34639187,87286.0,87285.0,0.14806]
[1764681320892,0.34639187,87286.0,87285.0,0.14906]
[1764681321784,0.34639187,87286.0,87285.0,0.1928]
[1764681322087,0.34639187,87286.0,87285.0,0.1918]
[1764681323980,0.34639187,87286.0,87285.0,0.1928]
[1764681324392,0.34639187,87286.0,87285.0,0.1918]
[1764681324584,0.34639187,87286.0,87285.0,0.1928]
[1764681325185,0.34639187,87286.0,87285.0,0.1918]
[1764681325495,0.34639187,87286.0,87285.0,0.1928]
[1764681326477,0.35785037,87286.0,87285.0,0.1928]
[1764681327594,0.35785037,87286.0,87285.0,0.1918]
[1764681327795,0.35785037,87286.0,87285.0,0.1928]
[1764681329683,0.34639187,87286.0,87285.0,0.1928]
[1764681330895,0.31656187,87286.0,87285.0,0.1928]
[1764681331691,0.28673187,87286.0,87285.0,0.21071484]
[1764681331892,0.28673187,87286.0,87285.0,0.20971484]
[1764681332091,0.28673187,87286.0,87285.0,0.21071484]
[1764681333291,0.28673187,87286.0,87285.0,0.25193262]
[1764681335293,0.28673187,87286.0,87285.0,0.21071484]
[1764681335493,0.28673187,87286.0,87285.0,0.20971484]
[1764681335692,0.28673187,87286.0,87285.0,0.21271484]
[1764681337090,0.3608,87301.0,87285.0,0.21171484]
[1764681337292,0.08095,87301.0,87300.0,0.0809]
[1764681337497,0.08095,87301.0,87294.0,0.11178888]
[1764681337498,0.08095,87295.0,87294.0,0.11178888]
[1764681337694,0.08095,87295.0,87294.0,0.0988116]
[1764681338390,0.08095,87295.0,87294.0,0.0809]
[1764681340095,0.08095,87295.0,87294.0,0.0819]
[1764681340302,0.08095,87295.0,87294.0,0.17659]
[1764681340502,0.52105187,87301.0,87300.0,0.0114555]
[1764681340801,0.16025187,87301.0,87300.0,0.1160855]
[1764681345006,0.16025187,87301.0,87300.0,0.6160855]
[1764681345201,0.16025187,87301.0,87300.0,0.6469736]
[1764681347301,0.16025187,87301.0,87300.0,0.6160855]
[1764681350604,0.00017187,87303.0,87300.0,0.6160855]
[1764681350605,0.00017187,87303.0,87302.0,0.0809]
[1764681350803,0.00017187,87303.0,87302.0,0.11174244]
[1764681351024,0.15792805,87303.0,87302.0,0.0809]
[1764681352503,0.42184185,87328.0,87302.0,0.0809]
[1764681352504,0.44175,87328.0,87327.0,0.0809]
[1764681352710,0.08095,87328.0,87327.0,0.9747]
[1764681352903,0.17563805,87328.0,87327.0,0.9747]
[1764681353711,0.17663805,87328.0,87327.0,0.9747]
[1764681354212,0.09968805,87328.0,87327.0,0.9747]
[1764681354512,0.09168805,87328.0,87327.0,0.9747]
[1764681354897,0.17263805,87328.0,87327.0,0.4417]
[1764681355102,0.17263805,87328.0,87323.0,0.01127067]
[1764681355103,0.0924024,87324.0,87323.0,0.01127067]
[1764681355305,0.0924024,87324.0,87323.0,0.58307067]
[1764681355700,0.0924024,87324.0,87323.0,0.5718]
[1764681356310,0.0934024,87324.0,87323.0,0.5718]
[1764681356510,0.08195,87324.0,87323.0,0.5718]
[1764681356708,0.08195,87324.0,87323.0,0.61382]
[1764681357218,0.08495,87324.0,87323.0,0.61382]
[1764681360719,0.08495,87324.0,87323.0,0.61378]
[1764681361316,0.004,87324.0,87323.0,0.61378]
[1764681361709,0.004,87324.0,87323.0,0.64457718]
[1764681362019,0.004,87324.0,87323.0,0.61378]
[1764681362419,0.09068805,87324.0,87323.0,0.61378]
[1764681363105,0.02744805,87324.0,87323.0,0.61378]
[1764681363314,0.0001713,87336.0,87335.0,0.01052]
[1764681363514,0.0001713,87336.0,87335.0,1.26496]
[1764681363718,0.02761935,87336.0,87335.0,1.26496]
[1764681363915,0.02761935,87336.0,87335.0,1.2764109]
[1764681364512,0.03061935,87336.0,87335.0,1.2764109]
[1764681365614,0.03161935,87336.0,87335.0,1.2764109]
[1764681367213,0.03161935,87336.0,87335.0,1.7764109]
[1764681368124,0.03161935,87336.0,87335.0,1.81844795]
[1764681368125,0.02861935,87336.0,87335.0,1.81844795]
[1764681368325,0.02861935,87336.0,87335.0,2.20844795]
[1764681368525,0.02861935,87336.0,87335.0,2.18531002]
[1764681368726,0.02327,87353.0,87350.0,0.0114489]
[1764681368918,0.07098,87353.0,87352.0,0.3608]
[1764681369124,0.11942,87353.0,87352.0,0.3608]
[1764681369813,0.11942,87353.0,87352.0,0.45525]
[1764681370427,0.11942,87353.0,87352.0,0.45825]
[1764681370825,0.11942,87353.0,87352.0,0.45525]
[1764681371026,0.11942,87353.0,87352.0,0.45825]
[1764681373133,0.11942,87353.0,87352.0,0.45925]
[1764681373428,0.11942,87360.0,87359.0,0.0114478]
[1764681373629,0.11942,87360.0,87359.0,0.3722478]
[1764681373832,0.11942,87360.0,87359.0,0.9049678]
[1764681374931,0.12142,87367.0,87366.0,0.0114468]
[1764681375128,0.07298,87367.0,87366.0,0.3722468]
[1764681375822,0.12142,87367.0,87366.0,0.3722468]
[1764681376215,0.12142,87367.0,87366.0,0.3742468]
[1764681376436,0.02527,87367.0,87366.0,0.3742468]
[1764681377729,0.02527,87388.0,87366.0,0.3742468]
[1764681377730,0.02527,87388.0,87386.0,0.0114442]
[1764681377936,0.12142,87395.0,87387.0,0.89344]
[1764681378233,0.12142,87395.0,87394.0,0.3722432]
[1764681378433,0.02527,87402.0,87401.0,0.0114423]
[1764681378622,0.12142,87409.0,87407.0,0.0114414]
[1764681378931,0.12142,87409.0,87408.0,0.3608]
[1764681379128,0.02527,87430.0,87408.0,0.3608]
[1764681379129,0.02527,87440.0,87413.0,0.0114406]
[1764681379341,0.02527,87424.0,87420.0,0.0114398]
[1764681379630,0.02527,87424.0,87423.0,0.3608]
[1764681379830,0.02527,87424.0,87423.0,1.2542]
[1764681380332,0.02527,87426.0,87424.0,0.0114393]
[1764681380824,0.07298,87426.0,87423.0,1.2542]
[1764681381018,0.02527,87426.0,87423.0,1.2542]
[1764681381219,0.09615,87424.0,87423.0,0.3608]
[1764681381526,0.09615,87424.0,87423.0,1.25412]
[1764681382034,0.12142,87426.0,87423.0,1.25512]
[1764681382232,0.07298,87435.0,87424.0,0.0114393]
[1764681382432,0.07298,87435.0,87432.0,0.3608]
[1764681382737,0.09615,87434.0,87433.0,0.53248]
[1764681382919,0.09615,87434.0,87432.0,0.3608]
[1764681383119,0.02527,87426.0,87424.0,0.3608]
[1764681383327,0.12142,87426.0,87425.0,0.53244]
[1764681383537,0.02527,87426.0,87425.0,0.53244]
[1764681383718,0.02527,87435.0,87433.0,0.0114381]
[1764681383925,0.07298,87435.0,87434.0,0.89324]
[1764681384438,0.12142,87435.0,87434.0,0.89324]
[1764681384733,0.02527,87448.0,87435.0,0.0114378]
[1764681384938,0.12142,87435.0,87434.0,0.89324]
[1764681385232,0.02527,87448.0,87442.0,0.0114369]
[1764681385233,0.12142,87448.0,87442.0,0.0114369]
[1764681385424,0.12142,87448.0,87447.0,0.3608]
[1764681386232,0.02527,87448.0,87446.0,0.53236]
[1764681386434,0.09615,87447.0,87446.0,0.53236]
[1764681386633,0.09615,87445.0,87444.0,0.3608]
[1764681386824,0.09615,87445.0,87408.0,0.03073621]
[1764681386825,0.09615,87445.0,87408.0,0.3608]
[1764681386826,0.02313,87417.0,87408.0,0.3608]
[1764681387024,0.09615,87403.0,87402.0,0.47864]
[1764681387226,0.09615,87403.0,87402.0,0.52761]
[1764681387635,0.09615,87403.0,87402.0,0.47864]
[1764681387826,0.09615,87403.0,87402.0,0.57348]
[1764681388136,0.09615,87410.0,87409.0,0.09484]
[1764681388638,0.12142,87410.0,87409.0,0.09484]
[1764681388832,0.12142,87410.0,87409.0,0.04897]
[1764681389040,0.09615,87403.0,87402.0,0.48064]
[1764681389225,0.09615,87403.0,87402.0,0.52761]
[1764681389623,0.09615,87403.0,87402.0,0.47864]
[1764681390632,0.09615,87395.0,87392.0,0.3608]
[1764681390821,0.09615,87395.0,87392.0,0.77056]
[1764681391129,0.09615,87395.0,87392.0,0.40976]
[1764681392136,0.09615,87395.0,87394.0,0.00317154]
[1764681393543,0.09615,87395.0,87394.0,0.05827154]
[1764681393739,0.09615,87395.0,87394.0,0.11397154]
[1764681394037,0.09615,87395.0,87394.0,0.00317154]
[1764681394228,0.05512,87397.0,87396.0,0.1108]
[1764681394434,0.11274,87397.0,87396.0,0.1108]
[1764681394831,0.11274,87397.0,87396.0,0.0551]
[1764681395033,0.11274,87397.0,87396.0,0.1108]
[1764681395429,0.11274,87395.0,87394.0,0.11397154]
[1764681395626,0.3608,87405.0,87404.0,0.0551]
[1764681395829,0.3608,87405.0,87394.0,0.05587154]
[1764681395830,0.11274,87397.0,87396.0,0.1138]
[1764681396035,0.1241828,87397.0,87396.0,0.003]
[1764681396548,0.11274,87397.0,87396.0,0.003]
[1764681396733,0.11274,87397.0,87396.0,0.0581]
[1764681396931,0.3608,87405.0,87396.0,0.1138]
[1764681397133,0.11274,87405.0,87404.0,0.1108]
[1764681397840,0.11274,87405.0,87404.0,0.1128]
[1764681398543,0.05529046,87411.0,87410.0,0.1108]
[1764681398731,0.11291046,87411.0,87410.0,0.1108]
[1764681399042,0.11291046,87411.0,87404.0,0.002]
[1764681399043,0.11274,87405.0,87404.0,0.1128]
[1764681399244,0.12435146,87411.0,87410.0,0.1108]
[1764681399842,0.11274,87405.0,87404.0,0.1128]
[1764681400244,0.11274,87405.0,87404.0,0.002]
[1764681400943,0.11274,87401.0,87400.0,0.4716]
[1764681402138,0.11274,87401.0,87400.0,0.4736]
[1764681403944,0.11274,87401.0,87400.0,0.50413921]
[1764681405352,0.11274,87401.0,87400.0,0.53479655]
[1764681406453,0.1241823,87401.0,87400.0,0.17406096]
[1764681406655,0.11274,87401.0,87400.0,0.17406096]
[1764681406856,0.11274,87401.0,87400.0,0.14333921]
[1764681407359,0.11274,87401.0,87400.0,0.03253921]
[1764681408152,0.11274,87401.0,87400.0,0.08763921]
[1764681408358,0.11274,87401.0,87400.0,0.14333921]
[1764681408853,0.5083,87408.0,87407.0,0.1108]
[1764681409158,0.47354,87408.0,87407.0,0.1528378]
[1764681409346,0.5083,87408.0,87407.0,0.0114415]
[1764681409546,0.39556,87408.0,87406.0,0.0114416]
[1764681409744,0.39556,87408.0,87400.0,0.002]
[1764681409745,0.11274,87401.0,87400.0,0.0577]
[1764681409950,0.11274,87401.0,87400.0,0.15483784]
[1764681410462,0.11274,87401.0,87400.0,0.15283784]
[1764681411047,0.11274,87401.0,87400.0,0.15483784]
[1764681411248,0.11274,87401.0,87400.0,0.18557151]
[1764681411556,0.11274,87401.0,87400.0,0.09913794]
[1764681411760,0.11274,87401.0,87400.0,0.15483794]
[1764681412352,0.5083,87408.0,87407.0,0.1222415]
[1764681412561,0.5083,87408.0,87407.0,0.14139554]
[1764681412759,0.5083,87408.0,87407.0,0.03059554]
[1764681413056,0.5083,87408.0,87401.0,0.03073367]
[1764681413057,0.1241823,87401.0,87400.0,0.002]
[1764681413266,0.1241823,87401.0,87400.0,0.39342045]
[1764681413267,0.11274,87401.0,87400.0,0.39342045]
[1764681413563,0.5083,87408.0,87407.0,0.1232415]
[1764681413765,0.47354,87408.0,87407.0,0.15386195]
[1764681414159,0.47354,87408.0,87407.0,0.15286195]
[1764681414660,0.05512,87408.0,87407.0,0.15286195]
[1764681414864,0.00017046,87411.0,87410.0,0.1222411]
[1764681415060,0.00017046,87411.0,87410.0,0.68534155]
[1764681415259,0.00017046,87411.0,87410.0,0.72632317]
[1764681416361,0.00017046,87411.0,87410.0,0.76490101]
[1764681416871,0.00017046,87411.0,87410.0,0.70322864]
[1764681417365,0.00017046,87411.0,87410.0,0.70422864]
[1764681418557,0.00017046,87411.0,87410.0,1.20422864]
[1764681419271,0.11274,87457.0,87456.0,0.1108]
[1764681419460,0.11274,87457.0,87456.0,0.67420688]
[1764681419857,0.11274,87465.0,87464.0,0.122234]
[1764681420058,0.11274,87465.0,87464.0,0.14148688]
[1764681420560,0.11274,87465.0,87464.0,0.56344688]
[1764681421163,0.11374,87465.0,87464.0,0.70505854]
[1764681421467,0.002,87465.0,87464.0,0.67424688]
[1764681421960,0.1261739,87465.0,87464.0,0.03068688]
[1764681422267,0.11274,87458.0,87457.0,0.1108]
[1764681422475,0.05512,87458.0,87457.0,0.64356]
[1764681422664,0.11274,87458.0,87457.0,0.64356]
[1764681423571,0.001,87458.0,87457.0,0.64356]
[1764681423761,0.10108,87458.0,87457.0,0.64356]
[1764681424157,0.46188,87458.0,87457.0,0.64356]
[1764681424759,0.4733148,87458.0,87457.0,0.64356]
[1764681425065,0.46188,87458.0,87457.0,0.64356]
[1764681425461,0.4733148,87458.0,87457.0,0.64356]
[1764681427068,0.10008,87457.0,87456.0,0.00017154]
[1764681428267,0.10008,87457.0,87456.0,0.10107154]
[1764681429168,0.10008,87457.0,87456.0,0.04939154]
[1764681429370,0.10108,87457.0,87456.0,0.04939154]
[1764681429573,0.10108,87457.0,87456.0,0.10107154]
[1764681430475,0.10108,87457.0,87456.0,0.04939154]
[1764681430677,0.10108,87457.0,87456.0,0.00017154]
[1764681431962,0.0114366,87444.0,87443.0,0.3608]
[1764681432166,0.0114366,87444.0,87435.0,0.3608]
[1764681432167,0.0114375,87438.0,87435.0,0.3608]
[1764681432466,0.10008,87436.0,87435.0,0.3608]
[1764681432971,0.10008,87436.0,87435.0,0.41002]
[1764681433186,0.10008,87436.0,87435.0,0.4617]
[1764681433364,0.00017154,87444.0,87443.0,0.1123368]
[1764681434667,0.13476154,87444.0,87443.0,0.1009]
[1764681434874,0.13476154,87444.0,87443.0,0.53356]
[1764681437570,0.13476154,87444.0,87443.0,0.58278]
[1764681437771,0.10025154,87444.0,87443.0,0.63446]
[1764681437972,0.00017154,87444.0,87443.0,0.63446]
[1764681438881,0.00017154,87444.0,87443.0,0.66485708]
[1764681440368,0.13459,87462.0,87461.0,0.1009]
[1764681441468,0.13559,87462.0,87461.0,0.1009]
[1764681443371,0.13559,87462.0,87461.0,0.04922]
[1764681445183,0.10108,87462.0,87461.0,0.1009]
[1764681446173,0.10108,87462.0,87461.0,0.07970489]
[1764681446368,0.10108,87462.0,87461.0,0.03048489]
[1764681446571,0.1115153,87454.0,87452.0,0.03081166]
[1764681446772,0.10008,87454.0,87453.0,0.66401424]
[1764681446977,0.10008,87454.0,87453.0,0.67544974]
[1764681447174,0.1115153,87454.0,87453.0,0.7062614]
[1764681448070,0.1115153,87454.0,87453.0,0.6948259]
[1764681448272,0.2715153,87454.0,87453.0,0.03067424]
[1764681448477,0.1115166,87444.0,87443.0,0.03080597]
[1764681448677,0.10008,87443.0,87442.0,0.03080597]
[1764681448982,0.10008,87443.0,87436.0,0.32148]
[1764681448983,0.10008,87437.0,87436.0,0.03080597]
[1764681449286,0.1115185,87430.0,87429.0,0.03080597]
[1764681449483,0.1115195,87422.0,87421.0,0.04125375]
[1764681449682,0.1115195,87422.0,87421.0,0.00017154]
[1764681451279,0.10008,87422.0,87421.0,0.10107154]
[1764681451493,0.05068,87422.0,87421.0,0.10107154]
[1764681451689,0.0114391,87426.0,87421.0,0.10107154]
[1764681451690,0.0621191,87426.0,87425.0,0.1009]
[1764681451875,0.1115191,87426.0,87425.0,0.1123391]
[1764681452080,0.1115191,87426.0,87425.0,0.1009]
[1764681452275,0.1115191,87426.0,87422.0,0.0114395]
[1764681452276,0.46105154,87438.0,87437.0,0.1009]
[1764681453297,0.10025154,87438.0,87437.0,0.1009]
[1764681453679,0.00017154,87438.0,87437.0,0.1009]
[1764681453886,0.00017154,87438.0,87437.0,0.1029]
[1764681454192,0.09475154,87438.0,87437.0,0.1029]
[1764681454493,0.09475154,87438.0,87437.0,0.002]
[1764681455289,0.09458,87429.0,87428.0,0.04792]
[1764681456488,0.01804,87430.0,87424.0,0.0593593]
[1764681456689,0.09458,87425.0,87424.0,0.09553]
[1764681456987,0.3608,87432.0,87431.0,0.09553]
[1764681457195,0.00017154,87438.0,87437.0,0.1069676]
[1764681457381,0.09475154,87438.0,87437.0,0.1069676]
[1764681458295,0.09475154,87438.0,87437.0,0.09553]
[1764681458695,0.09475154,87438.0,87437.0,0.09753]
[1764681460591,0.00017154,87438.0,87437.0,0.45833]
[1764681461390,0.00017154,87438.0,87437.0,0.45633]
[1764681461701,0.00017154,87438.0,87437.0,0.45833]
[1764681462293,0.00017154,87438.0,87437.0,0.5172924]
[1764681462605,0.00017154,87438.0,87437.0,0.47621019]
[1764681462994,0.04813154,87438.0,87437.0,0.47621019]
[1764681463295,0.04813154,87438.0,87437.0,0.45833]
[1764681463296,0.09475154,87438.0,87437.0,0.45833]
[1764681463501,0.09475154,87438.0,87437.0,0.97937]
[1764681463690,0.09475154,87438.0,87437.0,0.3628]
[1764681464003,0.09475154,87438.0,87437.0,0.09753]
[1764681464592,0.09475154,87438.0,87437.0,0.09553]
[1764681464788,0.09475154,87438.0,87437.0,0.09653]
[1764681465093,0.00017154,87438.0,87437.0,0.09653]
[1764681465286,0.00017154,87438.0,87437.0,0.45733]
[1764681465504,0.00017154,87438.0,87437.0,0.4752104]
[1764681465804,0.45538,87461.0,87460.0,0.04792]
[1764681466004,0.45538,87461.0,87460.0,0.09553]
[1764681466208,0.09458,87454.0,87453.0,0.53268]
[1764681466500,0.45538,87461.0,87460.0,0.09553]
[1764681466695,0.40876,87461.0,87460.0,0.09553]
[1764681467090,0.45538,87461.0,87460.0,0.09553]
[1764681467294,0.12293,87460.0,87459.0,0.04792]
[1764681467698,0.09458,87455.0,87454.0,0.09553]
[1764681468304,0.3608,87461.0,87460.0,0.12313]
[1764681468305,0.001,87461.0,87460.0,0.12313]
[1764681468695,0.09558,87461.0,87460.0,0.09553]
[1764681469094,0.001,87461.0,87460.0,0.11825]
[1764681469706,0.02835,87480.0,87462.0,0.0114343]
[1764681469891,0.09458,87466.0,87465.0,0.45633]
[1764681470291,0.09458,87466.0,87465.0,0.40872]
[1764681470506,0.09458,87466.0,87465.0,0.45633]
[1764681470899,0.04796,87459.0,87458.0,0.45633]
[1764681471094,0.09458,87459.0,87458.0,0.3608]
[1764681471405,0.02835,87460.0,87454.0,0.5326]
[1764681471406,0.09458,87455.0,87454.0,0.62813]
[1764681471905,0.09458,87455.0,87454.0,0.5326]
[1764681472302,0.3608,87466.0,87465.0,0.09553]
[1764681472506,0.09458,87456.0,87455.0,0.09553]
[1764681472802,0.09458,87455.0,87454.0,1.3934]
[1764681473404,0.09458,87455.0,87454.0,1.0326]
[1764681474301,0.09458,87455.0,87454.0,0.5346]
[1764681474702,0.09458,87455.0,87454.0,0.5326]
[1764681474904,0.09458,87455.0,87454.0,0.5336]
[1764681475410,0.09458,87455.0,87454.0,0.5326]
[1764681475707,0.09458,87455.0,87454.0,0.5336]
[1764681475900,0.1060152,87455.0,87454.0,0.5336]
[1764681476609,0.1060152,87455.0,87454.0,0.62913]
[1764681476610,0.09458,87455.0,87454.0,0.62913]
[1764681477611,0.45538,87457.0,87456.0,0.09553]
[1764681478007,0.45538,87466.0,87465.0,0.09553]
[1764681478702,0.0114339,87465.0,87455.0,0.0114351]
[1764681478906,0.1060139,87465.0,87464.0,0.04792]
[1764681479506,0.1060139,87465.0,87464.0,0.09553]
[1764681479904,0.3608,87466.0,87465.0,0.09553]
[1764681480510,0.3608,87466.0,87455.0,0.0114352]
[1764681480704,0.09458,87456.0,87455.0,0.04792]
[1764681481013,0.09458,87456.0,87452.0,0.00017154]
[1764681481014,0.40876,87458.0,87457.0,0.09553]
[1764681481213,0.45538,87458.0,87457.0,0.09553]
[1764681482507,0.45538,87458.0,87452.0,0.01160704]
[1764681482508,0.1060155,87453.0,87452.0,0.00017154]
[1764681484811,0.4160155,87453.0,87452.0,0.00017154]
[1764681485007,0.4160155,87453.0,87424.0,0.08218755]
[1764681485008,0.0936691,87425.0,87424.0,0.04153]
[1764681485214,0.08223,87417.0,87416.0,0.08209156]
[1764681485719,0.08223,87417.0,87416.0,0.00011156]
[1764681487619,0.08223,87417.0,87408.0,0.00017154]
[1764681487620,0.0936712,87409.0,87408.0,0.00017154]
[1764681487828,0.4544712,87409.0,87408.0,0.00017154]
[1764681488626,0.45456231,87409.0,87408.0,0.00017154]
[1764681490412,0.08232111,87409.0,87408.0,0.04170154]
[1764681490621,0.08232111,87409.0,87408.0,0.08215154]
[1764681490821,0.08232111,87409.0,87408.0,0.08315154]
[1764681491017,9.111e-05,87409.0,87408.0,0.08315154]
[1764681491613,0.01153231,87409.0,87408.0,0.08315154]
[1764681491812,9.111e-05,87409.0,87408.0,0.09459284]
[1764681492117,9.111e-05,87409.0,87408.0,0.08315154]
[1764681494128,0.00017154,87425.0,87420.0,0.08198]